[Event "Hungarian Super League 2024-25"]
[Site "Hungary"]
[Date "2024.11.02"]
[Round "1.21"]
[White "Kozul, Zdenko"]
[Black "Perunovic, Milos"]
[Result "1-0"]
[ECO "A61"]
[WhiteElo "2511"]
[BlackElo "2508"]
[Annotator "TA"]
[PlyCount "67"]
[EventDate "2024.10.30"]
[EventType "team-tourn"]
[EventCountry "HUN"]
[SourceTitle "playchess.com"]
[Source "ChessBase"]
[SourceQuality "1"]
[TimeControl "40/5400+30:1800+30"]

{[%evp 26,67,57,30,61,28,44,0,0,0,0,0,-17,-22,0,-13,0,0,9,15,21,11,14,7,7,9,20,18,66,68,227,205,218,225,208,210,352,323,467,292,2189,2042,29988,29989]} 1. d4 {[%emt 0:00:36]} Nf6 {[%emt 0:00:51]} 2. Nf3 {[%emt 0:01:24]} e6 {[%emt 0:00:41]} 3. c4 {[%emt 0:00:10]} c5 {[%emt 0:01:49]} 4. d5 {[%emt 0:00:10]} d6 {[%emt 0:00:08]} 5. Nc3 {[%emt 0:00:22]} exd5 {[%emt 0:00:11]} 6. cxd5 {[%emt 0:00:06]} g6 {[%emt 0:00:21]} 7. e4 {[%emt 0:07:39]} a6 {[%emt 0:02:50]} 8. a4 {[%emt 0:00:36]} Bg4 {[%emt 0:00:42]} 9. Be2 {[%emt 0:00:10]} Bxf3 {[%emt 0:04:34]} 10. Bxf3 {[%emt 0:00:07]} Nbd7 {[%emt 0:01:15]} 11. O-O {[%emt 0:03:18]} Bg7 {[%emt 0:02:14]} 12. Bf4 {[%emt 0:00:39]} Qe7 {[%emt 0:00:15]} 13. Re1 {[%emt 0:14:00]} O-O {[%emt 0:03:25]} 14. a5 {[%emt 0:00:51]} h5 {[%emt 0:16:07]} 15. Na4 {[%emt 0:04:03][%cal Ob2b4] White is more active.} Nh7 {[%emt 0:13:50][%cal Bf6h7,Bh7g5,Bg5f3][%mdl 32]} 16. Bd2 {[%emt 0:19:44]} (16. g3 $14) 16... Ng5 $11 {[%emt 0:12:18] The position is equal.} 17. g3 {[%emt 0:01:31]} Nxf3+ {[%emt 0:18:15]} 18. Qxf3 {[%emt 0:00:10]} Rae8 {[%emt 0:00:34]} 19. Qb3 {[%emt 0:12:34][%cal Og1g2]} Ne5 {[%emt 0:01:29] ...f5 would now be deadly.} 20. Nb6 {[%emt 0:00:55]} f5 {[%emt 0:09:38] [#] ...fxe4 is the strong threat.} 21. f4 {[%emt 0:08:27]} c4 {[%emt 0:00:55]} 22. Nxc4 {[%emt 0:00:33]} Nxc4 {[%emt 0:00:11]} 23. Qxc4 {[%emt 0:00:08][%cal Oe4e5]} fxe4 {[%emt 0:00:07]} 24. Re2 {[%emt 0:05:26][%cal Be1e2,Be2g2,Bg2g6][%mdl 32]} Rf5 {[%emt 0:03:09]} 25. Be3 {[%emt 0:07:01]} Qd7 {[%emt 0:02:21]} 26. Rae1 {[%emt 0:02:41]} h4 {[%emt 0:00:57]} 27. g4 $14 {[%emt 0:00:47]} Rxf4 {[%emt 0:00:33] A mistake that costs the game.} 28. Bxf4 $18 {[%emt 0:00:24]} Qxg4+ {[%emt 0:00:04] [#]} 29. Rg2 $1 {[%emt 0:01:19]} Qxf4 {[%emt 0:00:05]} 30. Rxg6 {[%emt 0:01:04]} Re5 {[%emt 0:03:17]} (30... Qf5 $142 31. Rg2 (31. Rxd6 Qg4+ 32. Kh1 Qf3+ 33. Kg1 Kh7 $19) 31... Kh8) 31. Rg2 {[%emt 0:02:14]} (31. Rxd6 $2 {leads to mate.} Rg5+ 32. Kh1 Qf3#) 31... Kh7 {[%emt 0:01:38]} (31... Qf5 {might work better.} 32. Rf1 Qd7) 32. b4 {[%emt 0:00:16] Strongly threatening Rf1.} Rf5 $2 {[%emt 0:00:56]} (32... Kh6 33. h3 Rg5) 33. Rxe4 {[%emt 0:03:01]} Bd4+ {[%emt 0:00:40]} 34. Rxd4 {[%emt 0:00:38] Weighted Error Value: White=0.19 (very precise) /Black=0.73.  Mistake:       	White=1     	Black=5      Inaccurate:     	White=2     	Black=1      OK:         	White=6     	Black=6      Best:        	White=4     	Black=1      Strong:       	White=1     	---} 1-0

[Event "Hungarian Super League 2024-25"]
[Site "Hungary"]
[Date "2024.11.02"]
[Round "1.22"]
[White "Stankovic, Milos"]
[Black "Hera, Imre Jr."]
[Result "0-1"]
[ECO "B22"]
[WhiteElo "2471"]
[BlackElo "2522"]
[Annotator "TA"]
[PlyCount "100"]
[EventDate "2024.10.30"]
[EventType "team-tourn"]
[EventCountry "HUN"]
[SourceTitle "playchess.com"]
[Source "ChessBase"]
[SourceQuality "1"]
[TimeControl "40/5400+30:1800+30"]

{[%evp 19,100,0,0,0,0,0,0,-2,0,5,12,13,21,-12,-10,-12,0,-10,0,-14,-11,-9,-11,-5,-11,-14,-8,-33,0,-39,-42,-56,-37,-50,-28,-65,-65,-88,-89,-80,-91,-58,-59,-69,-39,-32,-27,-23,-27,-39,-11,-29,-10,-32,-30,-27,-22,-29,-11,-17,-17,-106,-108,-121,-58,-60,-62,-55,-54,-60,-60,-64,-60,-52,-52,-1467,-972,-5951,-3581,-3108,-1403,-29968,-29967]} 1. e4 {[%emt 0:01:10]} c5 {[%emt 0:01:22]} 2. c3 {[%emt 0:01:33]} Nf6 {[%emt 0:00:21]} 3. e5 {[%emt 0:00:29]} Nd5 {[%emt 0:00:05]} 4. Nf3 {[%emt 0:01:29]} e6 {[%emt 0:00:43]} 5. d4 {[%emt 0:01:30]} cxd4 {[%emt 0:00:20]} 6. cxd4 {[%emt 0:00:30]} d6 {[%emt 0:00:06]} 7. Bc4 {[%emt 0:00:31]} Be7 {[%emt 0:00:05]} 8. O-O {[%emt 0:00:36]} O-O {[%emt 0:00:04]} 9. Qe2 {[%emt 0:01:23]} Nc6 {[%emt 0:00:30]} 10. Rd1 {[%emt 0:03:23][%cal Bf1d1,Bd1d3,Bd3h3][%mdl 32]} Na5 {[%emt 0:02:13]} 11. Bd3 {[%emt 0:07:35]} Nb4 {[%emt 0:00:34]} 12. Nc3 {[%emt 0:02:29]} Nxd3 {[%emt 0:03:29]} 13. Rxd3 {[%emt 0:00:32] The position is equal.} d5 {[%emt 0:02:35]} 14. Ne1 {[%emt 0:08:37]} f6 {[%emt 0:11:23]} 15. Rh3 {[%emt 0:20:24] [#] Strongly threatening Qh5.} Rf7 {[%emt 0:03:17]} 16. Nd3 {[%emt 0:11:00]} Nc6 {[%emt 0:01:18]} 17. Be3 {[%emt 0:03:32]} Bd7 {[%emt 0:08:56]} 18. Rd1 {[%emt 0:03:24]} Rc8 {[%emt 0:07:03]} 19. exf6 {[%emt 0:13:15]} Bxf6 {[%emt 0:00:54]} 20. Ne5 {[%emt 0:00:34]} Nxe5 {[%emt 0:14:10]} 21. dxe5 {[%emt 0:00:26]} Be7 {[%emt 0:15:53]} (21... Bxe5 22. Qh5 (22. Bxa7 Qc7 $17) 22... g5 23. Bxg5 $16 (23. Qxg5+ Qxg5 24. Bxg5 a6 $17)) 22. Qd3 {[%emt 0:03:29]} (22. Bxa7 b6 23. Rf3 Rxf3 24. Qxf3 Qc7 (24... Ra8 $2 25. Bxb6 Qc8 26. h3 $18) 25. Nxd5 exd5 26. Qxd5+ Kh8 27. Bxb6 (27. Qxd7 $2 Qxd7 28. Rb1 Qxa7 $19) 27... Qxb6 $17) 22... g6 {[%emt 0:00:16]} 23. Ne2 {[%emt 0:01:10]} (23. Bxa7 $2 b6 24. Rf3 Qc7 25. Rxf7 Kxf7 $19) 23... Qc7 {[%emt 0:00:51]} 24. Bd4 {[%emt 0:06:42]} (24. Bxa7 $2 b6 (24... Qxe5 25. Bd4 $15) 25. Qa6 Ra8 (25... Qxe5 26. Bxb6 Qxb2 27. Rb3 $17) 26. Bxb6 (26. Qxb6 Qxa7 27. Qxa7 Rxa7 $19) 26... Qc6 $19 (26... Rxa6 27. Bxc7 Rxa2 28. Rb1 $11)) 24... Qc2 {[%emt 0:01:24]} 25. Nc3 {[%emt 0:01:24] Repels Bb5} Qxd3 {[%emt 0:00:27]} 26. Rhxd3 {[%emt 0:00:15]} b5 {[%emt 0:01:27]} 27. Re3 {[%emt 0:05:25][%cal Oc3d5]} Rff8 {[%emt 0:03:05]} 28. Bxa7 {[%emt 0:00:58]} b4 {[%emt 0:00:23][%cal Oc8a8]} 29. Ne2 {[%emt 0:00:06]} Rc2 {[%emt 0:02:05]} 30. a3 {[%emt 0:00:55]} Ra8 {[%emt 0:04:15]} 31. Bd4 {[%emt 0:00:16]} bxa3 {[%emt 0:03:02] Black is more active.} 32. bxa3 {[%emt 0:00:08]} Rxa3 $40 {[%emt 0:00:14][%mdl 128] Black attacks.} (32... Bxa3 33. Ra1 $11) 33. Rxa3 {[%emt 0:00:42]} Bxa3 {[%emt 0:00:01]} 34. Nf4 {[%emt 0:00:41]} Rc4 {[%emt 0:02:29] Threatens to win with ...Ba4.} 35. g3 {[%emt 0:00:40]} Kf7 {[%emt 0:00:47]} 36. Rd3 {[%emt 0:00:46]} Be7 {[%emt 0:00:31]} 37. h4 {[%emt 0:00:23]} Bb5 {[%emt 0:02:42] And now ...Rc1+ would win.} 38. Rf3 {[%emt 0:00:33]} Ke8 {[%emt 0:00:40]} (38... Rxd4 39. Ne2+ (39. Nxd5+ Kg7 $17) 39... Ke8 40. Nxd4 $18) 39. Rb3 {[%emt 0:00:26]} (39. Nxe6 $2 {too greedy.} Kd7 40. Nf8+ Bxf8 41. Rxf8 Rxd4 $19) 39... Ba4 {[%emt 0:00:51]} 40. Rd3 {[%emt 0:00:00] [#]} (40. Rb8+ $11 {remains equal.} Kf7 41. Bb2) 40... Kd7 $1 $17 {[%emt 0:00:00]} 41. Ne2 {[%emt 0:05:25]} Bb4 {[%emt 0:10:09]} (41... Bc2 $17 42. Rc3 Rxc3 43. Bxc3 Bd1) 42. Be3 $15 {[%emt 0:05:35]} Bc2 {[%emt 0:01:54]} 43. Rd4 {[%emt 0:00:07]} Be4 {[%emt 0:00:15]} 44. Rxc4 {[%emt 0:04:48]} dxc4 {[%emt 0:00:05][%mdl 4096] Endgame. KBB-KBN} 45. Bd4 {[%emt 0:00:06]} Kc6 {[%emt 0:00:48] White must now prevent ...Bd3.} 46. Nc3 {[%emt 0:00:38]} Bd3 {[%emt 0:03:28] ...Bc5 is the strong threat.} 47. h5 $2 {[%emt 0:07:42][%mdl 8192] This move loses the game for White.} Bc5 $19 {[%emt 0:09:06]} 48. hxg6 {[%emt 0:00:28]} hxg6 {[%emt 0:00:05]} (48... Bxd4 $2 {is the wrong capture.} 49. g7 Bxc3 50. g8=Q $18 (50. g8=R $2 Bxe5 51. Re8 c3 $19)) 49. Bxc5 {[%emt 0:01:25]} Kxc5 {[%emt 0:00:01]} 50. f4 {[%emt 0:00:11]} Kb4 {[%emt 0:00:54] Weighted Error Value: White=0.57/Black=0.07 (flawless) .  Loses game:     	White=1     	---        Mistake:       	White=1     	Black=1      Inaccurate:     	White=4     	Black=3      OK:         	White=13    	Black=12     Best:        	White=3     	Black=3      Strong:       	---       	Black=1} 0-1

[Event "Hungarian Super League 2024-25"]
[Site "Hungary"]
[Date "2024.11.02"]
[Round "1.23"]
[White "Ruck, Robert"]
[Black "Palkovi, Jozsef"]
[Result "1-0"]
[ECO "A35"]
[WhiteElo "2516"]
[BlackElo "2376"]
[Annotator "TA"]
[PlyCount "81"]
[EventDate "2024.10.30"]
[EventType "team-tourn"]
[EventCountry "HUN"]
[SourceTitle "playchess.com"]
[Source "ChessBase"]
[SourceQuality "1"]
[TimeControl "40/5400+30:1800+30"]

{[%evp 20,81,70,48,68,52,39,54,62,54,85,62,103,97,94,27,66,36,49,0,58,0,54,54,97,76,187,186,200,120,105,98,118,104,94,74,77,81,402,383,442,444,404,393,388,393,386,382,368,388,378,391,758,765,859,822,4710,583,556,502,495,495,4956,4956]} 1. Nf3 {[%emt 0:00:35]} Nf6 {[%emt 0:02:18]} 2. c4 {[%emt 0:00:07]} c5 {[%emt 0:00:17]} 3. Nc3 {[%emt 0:00:18]} Nc6 {[%emt 0:00:48]} 4. g3 {[%emt 0:00:25]} d5 {[%emt 0:00:11]} 5. d4 {[%emt 0:00:04]} e6 {[%emt 0:01:08]} 6. cxd5 {[%emt 0:00:07]} Nxd5 {[%emt 0:00:55]} 7. Bg2 {[%emt 0:00:05]} Nxc3 {[%emt 0:00:54]} 8. bxc3 {[%emt 0:00:06]} cxd4 {[%emt 0:00:11]} 9. cxd4 {[%emt 0:03:51]} Be7 {[%emt 0:04:56]} 10. O-O {[%emt 0:00:21]} O-O {[%emt 0:00:09]} 11. Rb1 {[%emt 0:12:58]} Qa5 {[%emt 0:08:30]} 12. Qb3 {[%emt 0:07:09]} Rd8 {[%emt 0:04:10]} 13. e3 {[%emt 0:11:48]} Rb8 {[%emt 0:10:39] White is slightly better.} 14. Rd1 {[%emt 0:18:26]} Bf6 {[%emt 0:17:37]} 15. Bd2 {[%emt 0:03:08]} Qh5 {[%emt 0:04:24]} 16. Rdc1 {[%emt 0:03:25][%cal Oc1c6]} Bd7 {[%emt 0:01:10]} 17. Bc3 {[%emt 0:16:09]} (17. Ne1 $16 {Black must now prevent Bxc6.} h6 18. Nd3) 17... Na5 {[%emt 0:09:02]} 18. Qb4 $36 {[%emt 0:10:01][%mdl 2048] White has some pressure.} Nc6 {[%emt 0:00:45]} 19. Qb3 {[%emt 0:01:30]} Na5 {[%emt 0:00:34]} 20. Qb4 {[%emt 0:00:14]} Nc6 {[%emt 0:00:12]} 21. Qb2 {[%emt 0:00:04]} b5 {[%emt 0:02:36]} 22. Bb4 {[%emt 0:03:43]} e5 {[%emt 0:05:22]} (22... Rbc8 $16) 23. Bd6 $1 $18 {[%emt 0:01:04][%csl LRb8,LRe5]} exd4 {[%emt 0:00:09]} 24. Bxb8 {[%emt 0:00:54]} (24. Nxd4 Nxd4 25. exd4 Rbc8 $14) (24. exd4 Rbc8 $14) 24... dxe3 {[%emt 0:00:52]} 25. Qxb5 {[%emt 0:00:17]} exf2+ {[%emt 0:00:21]} 26. Kxf2 {[%emt 0:03:31]} Ne5 {[%emt 0:04:03]} 27. Qe2 {[%emt 0:00:29]} Nxf3 {[%emt 0:01:35]} 28. Bxa7 {[%emt 0:00:19]} (28. Qxf3 $2 Bd4+ 29. Kf1 Bg4 $19) (28. Bxf3 Qxh2+ 29. Bg2 Bd4+ 30. Ke1 Bg4 $19 (30... Re8 $2 31. Be4 $17)) 28... Bg4 {[%emt 0:00:53][%mdl 8192] This move loses the game for Black.} 29. h3 {[%emt 0:01:53] [#] Threatens to win with Rd1.} (29. Bxf3 $2 Bxf3 30. Qc2 (30. Qxf3 $2 Rd2+ 31. Ke1 Qxf3 $19) 30... Bd5 $19 (30... Qxh2+ $2 31. Kxf3 Qh5+ 32. Kg2 $18)) 29... Ne5 {[%emt 0:01:14]} 30. hxg4 {[%emt 0:00:26]} Nxg4+ {[%emt 0:00:08]} 31. Kg1 {[%emt 0:00:07][%cal Bf2g1,Bg1f1,Bf1g2][%mdl 32]} ({Don't take} 31. Ke1 Qa5+ 32. Kf1 Qxa7 33. Qxg4 Qxa2 $18) 31... Qh2+ {[%emt 0:00:50]} 32. Kf1 {[%emt 0:00:03]} Qxg3 {[%emt 0:00:37]} 33. Rd1 {[%emt 0:00:26] [#] Rxd8+ would kill now.} Qf4+ {[%emt 0:03:40]} 34. Bf3 {[%emt 0:01:37] Threatening mate with Rxd8+.} Rxd1+ {[%emt 0:00:49]} 35. Rxd1 {[%emt 0:00:29][%cal Re2e8]} ({Resist} 35. Qxd1 g6 36. Bg1 Ne5 $18) 35... g6 $2 {[%emt 0:03:31]} (35... Ne5 36. Bd4 g6) 36. Qe4 {[%emt 0:01:12] White is clearly winning.} Nh2+ {[%emt 0:00:38]} 37. Kg2 {[%emt 0:00:14]} Qc7 {[%emt 0:00:40]} 38. Bg1 {[%emt 0:00:21]} Nxf3 {[%emt 0:00:12]} 39. Qxf3 {[%emt 0:00:13]} Qc2+ {[%emt 0:00:38]} 40. Kh1 {[%emt 0:00:00] And now Rf1 would win.} Kg7 {[%emt 0:00:00]} (40... Qc4 $142 41. Rd2 (41. Qxf6 Qe4+ 42. Kh2 Qe2+ 43. Bf2 Qxd1 $18) 41... Be5) 41. Rf1 {[%emt 0:00:33] Weighted Error Value: White=0.31/Black=0.27 (precise) .  Loses game:     	---       	Black=1      Mistake:       	White=1     	Black=3      Inaccurate:     	White=2     	Black=4      OK:         	White=10    	Black=9      Best:        	White=4     	Black=5} 1-0

[Event "Hungarian Super League 2024-25"]
[Site "Hungary"]
[Date "2024.11.02"]
[Round "1.24"]
[White "Peczely, Sebastian Zsombor"]
[Black "Jankovic, Alojzije"]
[Result "0-1"]
[ECO "B48"]
[WhiteElo "2306"]
[BlackElo "2554"]
[Annotator "TA"]
[PlyCount "90"]
[EventDate "2024.10.30"]
[EventType "team-tourn"]
[EventCountry "HUN"]
[SourceTitle "playchess.com"]
[Source "ChessBase"]
[SourceQuality "1"]
[TimeControl "40/5400+30:1800+30"]

{[%evp 13,90,14,13,0,0,0,10,-3,-12,0,0,0,7,3,0,-16,-11,-35,0,-23,-18,-48,-12,-16,0,0,0,0,0,0,0,-12,-20,-11,8,0,32,28,17,11,87,91,116,94,102,89,95,42,41,7,8,-223,-268,-275,-275,-270,-269,-239,-200,-1196,-1174,-1196,-1187,-6103,-5644,-29972,-29973,-29973,-29974,-29974,-29975,-29975,-29976,-29976,-29977,-29977,-29978,-29978,-29979]} 1. e4 {[%emt 0:00:34]} c5 {[%emt 0:00:41]} 2. Nf3 {[%emt 0:00:06][%cal Bg1f3,Bf3d4,Bd4b5][%mdl 32]} e6 {[%emt 0:01:20]} 3. d4 {[%emt 0:00:08]} cxd4 {[%emt 0:00:05]} 4. Nxd4 {[%emt 0:00:05]} Nc6 {[%emt 0:00:30]} 5. Nc3 {[%emt 0:00:05]} Qc7 {[%emt 0:00:31]} 6. Be3 {[%emt 0:00:06]} Nf6 {[%emt 0:00:23]} 7. Ndb5 {[%emt 0:01:17]} Qb8 {[%emt 0:00:25]} 8. Qf3 {[%emt 0:00:12]} a6 {[%emt 0:03:16]} 9. Nd4 {[%emt 0:00:08]} Bd6 {[%emt 0:05:43]} 10. Nxc6 {[%emt 0:05:27] The position is equal.} bxc6 {[%emt 0:02:55]} 11. O-O-O {[%emt 0:00:09]} Be5 {[%emt 0:02:17][%cal Oe8g8]} 12. Bd4 {[%emt 0:16:07]} d5 {[%emt 0:13:39]} 13. Bxe5 {[%emt 0:08:24]} Qxe5 {[%emt 0:00:38]} 14. exd5 {[%emt 0:00:08]} cxd5 {[%emt 0:00:30]} 15. Bd3 {[%emt 0:00:09]} (15. Be2 {simplifies} Bb7 16. Qg3 Qxg3 17. hxg3 Ke7 18. g4) 15... Rb8 {[%emt 0:04:34]} (15... Bb7 {simplifies} 16. Qg3 Qxg3 17. hxg3 h5) 16. Rhe1 {[%emt 0:04:07]} (16. Qg3 {simplifies} Qxg3 17. hxg3 Ng4 18. Rd2) 16... Qd6 {[%emt 0:05:11][%cal Oe8g8]} 17. g4 {[%emt 0:08:46]} (17. Qg3 {simplifies} Qxg3 18. hxg3 h5 19. Be2) 17... Qb4 {[%emt 0:06:42]} 18. g5 $1 {[%emt 0:05:10]} Qxb2+ {[%emt 0:16:11]} 19. Kd2 {[%emt 0:00:04]} Ne4+ {[%emt 0:12:47]} 20. Nxe4 {[%emt 0:01:18]} Qb4+ {[%emt 0:04:28]} 21. Ke2 {[%emt 0:07:33]} dxe4 {[%emt 0:00:27]} 22. Qxe4 {[%emt 0:00:08]} Qxe4+ {[%emt 0:02:57]} 23. Bxe4 {[%emt 0:00:04]} h6 {[%emt 0:00:35]} 24. g6 {[%emt 0:08:11]} f6 {[%emt 0:01:30][%cal Bf7f6,Bf6f5][%mdl 32]} 25. Rb1 {[%emt 0:10:26] Inhibits Rb4.} Rxb1 {[%emt 0:00:39]} 26. Rxb1 $11 {[%emt 0:02:32][%mdl 4096] Endgame. next Rb8 is good for White. KRB-KRB} Kd7 {[%emt 0:03:30]} (26... Ke7 $1 $11 {keeps the balance.}) 27. Rb8 $16 {[%emt 0:01:08]} Kc7 {[%emt 0:05:32]} 28. Ra8 {[%emt 0:00:09] aiming for Ra7+.} f5 {[%emt 0:03:07]} 29. Bf3 {[%emt 0:14:34]} Kb6 {[%emt 0:00:26]} 30. Ke3 {[%emt 0:02:14]} (30. a4 $16 {[%cal Oa4a5] Strongly threatening a5+!} a5 31. Kd2) 30... e5 $14 {[%emt 0:01:50]} 31. Bd5 {[%emt 0:01:41] Threatening f4.} Rd8 {[%emt 0:01:05]} 32. Be6 $2 {[%emt 0:01:03] [#] Now White is beyond hope.} (32. h4 $11 {and White has nothing to worry.}) 32... Kb7 $19 {[%emt 0:00:29]} 33. Rxc8 {[%emt 0:00:23]} Rxc8 {[%emt 0:00:03]} 34. Bxc8+ {[%emt 0:00:04]} Kxc8 {[%emt 0:00:03] KP-KP} 35. Kd3 {[%emt 0:02:34]} Kc7 {[%emt 0:00:05]} 36. f4 $2 {[%emt 0:02:40] [#]} (36. Kc4 Kc6 37. a3) 36... e4+ $1 {[%emt 0:00:32]} (36... exf4 $2 {loses.} 37. Ke2 Kd6 38. Kf3 $18) 37. Kd4 {[%emt 0:00:14]} Kb6 {[%emt 0:01:07]} 38. h4 {[%emt 0:00:11]} h5 {[%emt 0:00:20] ( -> ...Ka5)} 39. c4 {[%emt 0:01:09]} Kc6 {[%emt 0:01:23] Black mates.} 40. a3 {[%emt 0:00:00]} a5 {[%emt 0:00:00]} 41. a4 {[%emt 0:08:51]} Kd6 {[%emt 0:01:11]} 42. c5+ {[%emt 0:00:11]} Kc6 {[%emt 0:00:06]} 43. Kc4 {[%emt 0:00:12]} e3 {[%emt 0:00:13]} 44. Kd3 {[%emt 0:00:01]} Kxc5 {[%emt 0:00:05]} 45. Kxe3 {[%emt 0:00:03]} Kc4 {[%emt 0:00:13] Weighted Error Value: White=0.65/Black=0.09 (flawless) .  Loses game:     	White=1     	---        Mistake:       	White=2     	Black=1      Inaccurate:     	White=2     	Black=3      OK:         	White=10    	Black=6      Best:        	White=1     	Black=4      Strong:       	White=1     	Black=1} (45... Kb4 $2 46. Kd4 Kxa4 47. Kd5 $19 (47. Ke5 $2 Kb4 $19)) 0-1

[Event "Hungarian Super League 2024-25"]
[Site "Hungary"]
[Date "2024.11.02"]
[Round "1.25"]
[White "Nemeth, Miklos"]
[Black "Tesik, Csaba"]
[Result "1-0"]
[ECO "C55"]
[WhiteElo "2422"]
[BlackElo "2290"]
[Annotator "RC"]
[PlyCount "163"]
[EventDate "2024.10.30"]
[EventType "team-tourn"]
[EventCountry "HUN"]
[SourceTitle "playchess.com"]
[Source "ChessBase"]
[SourceQuality "1"]
[TimeControl "40/5400+30:1800+30"]

1. e4 {[%emt 0:00:36]} e5 {[%emt 0:00:38]} 2. Nf3 {[%emt 0:00:04]} Nc6 {[%emt 0:00:06]} 3. Bc4 {[%emt 0:00:05]} Nf6 {[%emt 0:00:59]} 4. d3 {[%emt 0:00:06]} Be7 {[%emt 0:01:39]} 5. O-O {[%emt 0:00:16]} O-O {[%emt 0:00:11]} 6. Re1 {[%emt 0:00:06]} d6 {[%emt 0:01:16]} 7. a4 {[%emt 0:01:16]} Be6 {[%emt 0:01:17]} 8. Na3 {[%emt 0:04:34]} h6 {[%emt 0:12:34]} 9. Bd2 {[%emt 0:01:39]} a5 {[%emt 0:12:51]} 10. c3 {[%emt 0:07:41]} Nd7 {[%emt 0:17:16]} 11. d4 {[%emt 0:03:00]} exd4 {[%emt 0:07:35]} 12. cxd4 {[%emt 0:09:09]} Bg4 {[%emt 0:01:28]} 13. Nc2 {[%emt 0:02:42]} Bf6 {[%emt 0:07:41]} 14. Bc3 {[%emt 0:01:37]} Re8 {[%emt 0:00:13]} 15. Ne3 {[%emt 0:07:51]} Bh5 {[%emt 0:09:32]} 16. Nf5 {[%emt 0:08:36]} Bg6 {[%emt 0:02:41]} 17. Ng3 {[%emt 0:00:13]} Nb4 {[%emt 0:16:02]} 18. Bb3 {[%emt 0:11:08]} d5 {[%emt 0:01:36]} 19. exd5 {[%emt 0:04:57]} Rxe1+ {[%emt 0:02:45]} 20. Bxe1 {[%emt 0:00:06]} Nb6 {[%emt 0:01:11]} 21. Bxb4 {[%emt 0:05:26]} axb4 {[%emt 0:00:02]} 22. Ne5 {[%emt 0:00:10]} Nxd5 {[%emt 0:01:05]} 23. Nxg6 {[%emt 0:01:27]} fxg6 {[%emt 0:00:02]} 24. Qd3 {[%emt 0:03:34]} Kh7 {[%emt 0:01:08]} 25. Ne2 {[%emt 0:00:06]} Ra6 {[%emt 0:00:38]} 26. Qb5 {[%emt 0:02:52]} Rd6 {[%emt 0:00:33]} 27. Qxb7 {[%emt 0:00:09]} Qe7 {[%emt 0:00:18]} 28. Kf1 {[%emt 0:00:52]} Qe4 {[%emt 0:00:41]} 29. Bxd5 {[%emt 0:00:50]} Rxd5 {[%emt 0:00:03]} 30. f3 {[%emt 0:01:17]} Qf5 {[%emt 0:00:43]} 31. Qxb4 {[%emt 0:00:10]} c5 {[%emt 0:00:31]} 32. dxc5 {[%emt 0:00:37]} Rxc5 {[%emt 0:00:03]} 33. Qe4 {[%emt 0:03:13]} Qh5 {[%emt 0:01:09]} 34. h3 {[%emt 0:04:48]} Bxb2 {[%emt 0:00:27]} 35. Rb1 {[%emt 0:00:46]} Bf6 {[%emt 0:00:22]} 36. Nf4 {[%emt 0:01:36]} Qf5 {[%emt 0:00:30]} 37. Qxf5 {[%emt 0:01:29]} gxf5 {[%emt 0:00:02]} 38. Rb4 {[%emt 0:01:51]} Bc3 {[%emt 0:00:49]} 39. Rb5 {[%emt 0:00:19]} Rc4 {[%emt 0:00:15]} 40. Ne2 {[%emt 0:00:00]} Bd2 {[%emt 0:00:00]} 41. Rd5 {[%emt 0:02:25]} Be3 {[%emt 0:04:46]} 42. Re5 {[%emt 0:03:31]} Bd2 {[%emt 0:10:29]} 43. Rxf5 {[%emt 0:01:25]} Rxa4 {[%emt 0:00:21]} 44. g4 {[%emt 0:00:48]} Be3 {[%emt 0:01:00]} 45. Re5 {[%emt 0:02:10]} Bb6 {[%emt 0:00:19]} 46. h4 {[%emt 0:01:18]} Ra2 {[%emt 0:02:10]} 47. Re6 {[%emt 0:04:41]} Ba7 {[%emt 0:02:04]} 48. f4 {[%emt 0:06:15]} Kg8 {[%emt 0:02:03]} 49. g5 {[%emt 0:05:02]} hxg5 {[%emt 0:01:27]} 50. hxg5 {[%emt 0:00:07]} Kf7 {[%emt 0:01:57]} 51. Rc6 {[%emt 0:00:28]} Be3 {[%emt 0:07:33]} 52. g6+ {[%emt 0:02:21]} Ke7 {[%emt 0:00:55]} 53. f5 {[%emt 0:00:08]} Kd7 {[%emt 0:00:49]} 54. Rc3 {[%emt 0:01:32]} Bg5 {[%emt 0:00:34]} 55. Rg3 {[%emt 0:01:26]} Bf6 {[%emt 0:00:56]} 56. Rd3+ {[%emt 0:00:25]} Kc6 {[%emt 0:00:21]} 57. Ng3 {[%emt 0:02:21]} Ra5 {[%emt 0:00:54]} 58. Kg2 {[%emt 0:00:35]} Bh4 {[%emt 0:01:23]} 59. Rf3 {[%emt 0:00:07]} Kd6 {[%emt 0:00:34]} 60. Nh5 {[%emt 0:02:23]} Ra7 {[%emt 0:00:15]} 61. Re3 {[%emt 0:01:46]} Bg5 {[%emt 0:00:22]} 62. Re6+ {[%emt 0:00:23]} Kd5 {[%emt 0:00:01]} 63. Kf3 {[%emt 0:00:32]} Bh6 {[%emt 0:00:47]} 64. Nf4+ {[%emt 0:01:03]} Bxf4 {[%emt 0:00:57]} 65. Kxf4 {[%emt 0:00:05]} Ra1 {[%emt 0:00:25]} 66. Re7 {[%emt 0:03:20]} Rf1+ {[%emt 0:00:06]} 67. Kg4 {[%emt 0:00:02]} Rg1+ {[%emt 0:00:15]} 68. Kh3 {[%emt 0:00:10]} Rh1+ {[%emt 0:01:18]} 69. Kg2 {[%emt 0:00:14]} Rh5 {[%emt 0:00:14]} 70. Rxg7 {[%emt 0:02:02]} Rxf5 {[%emt 0:00:16]} 71. Kg3 {[%emt 0:00:22]} Ke6 {[%emt 0:01:05]} 72. Kg4 {[%emt 0:00:09]} Rf1 {[%emt 0:00:20]} 73. Ra7 {[%emt 0:00:28]} Rg1+ {[%emt 0:00:34]} 74. Kh5 {[%emt 0:00:05]} Kf6 {[%emt 0:00:31]} 75. Rf7+ {[%emt 0:00:08]} Ke6 {[%emt 0:00:12]} 76. Kh6 {[%emt 0:00:30]} Rh1+ {[%emt 0:00:13]} 77. Kg7 {[%emt 0:00:04]} Rh2 {[%emt 0:00:04]} 78. Rf1 {[%emt 0:01:12]} Ke7 {[%emt 0:00:27]} 79. Re1+ {[%emt 0:00:06]} Kd8 {[%emt 0:00:03]} 80. Kg8 {[%emt 0:00:31]} Kd7 {[%emt 0:00:11]} 81. g7 {[%emt 0:00:06]} Rh3 {[%emt 0:00:07]} 82. Re4 {[%emt 0:00:10]} 1-0